[Event "Live Chess"]
[Site "Chess.com"]
[Date "2023.05.21"]
[Round "-"]
[White "alanmike75"]
[Black "jimwad"]
[Result "1-0"]
[WhiteElo "1577"]
[BlackElo "1247"]
[TimeControl "300"]
[EndTime "18:24:28 PDT"]
[Termination "alanmike75 won by resignation"]

1. e4 {[%clk 0:04:58.1]} 1... e5 {[%clk 0:04:58.6]} 2. Nf3 {[%clk 0:04:56.5]}
2... Nc6 {[%clk 0:04:57.1]} 3. d4 {[%clk 0:04:55.1]} 3... exd4 {[%clk
0:04:54.7]} 4. Bc4 {[%clk 0:04:53.9]} 4... h6 {[%clk 0:04:50.5]} 5. Nxd4 {[%clk
0:04:52]} 5... Nxd4 {[%clk 0:04:48.9]} 6. Qxd4 {[%clk 0:04:50.4]} 6... Qf6
{[%clk 0:04:41.8]} 7. e5 {[%clk 0:04:45.1]} 7... Qg6 {[%clk 0:04:31.4]} 8. O-O
{[%clk 0:04:38.9]} 8... Ne7 {[%clk 0:04:27.4]} 9. Bd3 {[%clk 0:04:34.7]} 9...
Qe6 {[%clk 0:04:24.2]} 10. Nc3 {[%clk 0:04:27.1]} 10... Nf5 {[%clk 0:04:15.6]}
11. Qg4 {[%clk 0:04:18.4]} 11... d6 {[%clk 0:04:03]} 12. Bxf5 {[%clk 0:04:15.6]}
12... Qxf5 {[%clk 0:04:01.2]} 13. Qxf5 {[%clk 0:04:14.4]} 13... Bxf5 {[%clk
0:03:59.8]} 14. exd6 {[%clk 0:04:12.7]} 14... Bxd6 {[%clk 0:03:57.6]} 15. Re1+
{[%clk 0:04:11.4]} 15... Kd7 {[%clk 0:03:54.6]} 16. Re2 {[%clk 0:04:00.7]} 16...
Rae8 {[%clk 0:03:52.7]} 17. Be3 {[%clk 0:03:56]} 17... b6 {[%clk 0:03:40.4]} 18.
Rd1 {[%clk 0:03:53.4]} 18... Kc8 {[%clk 0:03:38]} 19. h3 {[%clk 0:03:47.1]}
19... g5 {[%clk 0:03:24.4]} 20. Nb5 {[%clk 0:03:35]} 20... Be5 {[%clk
0:02:48.6]} 21. Nxa7+ {[%clk 0:03:09.8]} 21... Kb7 {[%clk 0:02:46.9]} 22. Nb5
{[%clk 0:03:06.7]} 22... Bxb2 {[%clk 0:02:44.6]} 23. c3 {[%clk 0:03:00.7]} 23...
Bxc3 {[%clk 0:02:39.5]} 24. Nxc3 {[%clk 0:02:58.2]} 24... g4 {[%clk 0:02:36.6]}
25. hxg4 {[%clk 0:02:49.8]} 25... Bxg4 {[%clk 0:02:35.3]} 26. f3 {[%clk
0:02:48.3]} 26... Be6 {[%clk 0:02:32.9]} 27. Kf2 {[%clk 0:02:45.3]} 27... Bc4
{[%clk 0:02:30.7]} 28. Red2 {[%clk 0:02:43.5]} 28... h5 {[%clk 0:02:23]} 29. Ne4
{[%clk 0:02:40.7]} 29... Be6 {[%clk 0:02:16]} 30. Ng5 {[%clk 0:02:35.7]} 30...
h4 {[%clk 0:02:03.6]} 31. Nxe6 {[%clk 0:02:32.7]} 31... Rxe6 {[%clk 0:02:01.4]}
32. Bf4 {[%clk 0:02:24]} 32... Rc6 {[%clk 0:01:54.8]} 33. Rd7 {[%clk 0:02:17.9]}
33... Rg8 {[%clk 0:01:51.3]} 34. R1d2 {[%clk 0:02:15]} 34... Rh8 {[%clk
0:01:43.9]} 35. Rxf7 {[%clk 0:02:11.7]} 35... h3 {[%clk 0:01:42.3]} 36. gxh3
{[%clk 0:02:07.7]} 36... Rxh3 {[%clk 0:01:39.8]} 37. Kg2 {[%clk 0:02:00.1]}
37... Rh5 {[%clk 0:01:36.2]} 38. Bg3 {[%clk 0:01:42]} 38... Rhc5 {[%clk
0:01:30.4]} 39. Re7 {[%clk 0:01:30.9]} 39... Rc2 {[%clk 0:01:27]} 40. Ree2
{[%clk 0:01:26.4]} 40... Rxd2 {[%clk 0:01:24.8]} 41. Rxd2 {[%clk 0:01:24.9]}
41... Rg6 {[%clk 0:01:23.6]} 42. Kf2 {[%clk 0:01:23.1]} 42... Rc6 {[%clk
0:01:19.5]} 43. f4 {[%clk 0:01:21.3]} 43... Rf6 {[%clk 0:01:17.1]} 44. Kf3
{[%clk 0:01:19.8]} 44... Rf5 {[%clk 0:01:15]} 45. Ke4 {[%clk 0:01:17.3]} 45...
Rb5 {[%clk 0:01:10.1]} 46. f5 {[%clk 0:01:14.4]} 46... Rb4+ {[%clk 0:01:06.7]}
47. Ke5 {[%clk 0:01:12.8]} 47... Rb5+ {[%clk 0:01:05.8]} 48. Ke6 {[%clk
0:01:11.3]} 48... Rc5 {[%clk 0:01:03.8]} 49. f6 {[%clk 0:01:08.4]} 49... Rc4
{[%clk 0:01:01]} 50. f7 {[%clk 0:01:05.3]} 1-0

[Event "Live Chess"]
[Site "Chess.com"]
[Date "2023.05.21"]
[Round "-"]
[White "Tilbs_12"]
[Black "luckywookie"]
[Result "1-0"]
[WhiteElo "1543"]
[BlackElo "756"]
[TimeControl "300"]
[EndTime "18:24:45 PDT"]
[Termination "Tilbs_12 won by checkmate"]

1. e4 {[%clk 0:04:58.9]} 1... c6 {[%clk 0:04:57.4]} 2. d4 {[%clk 0:04:57.9]}
2... d5 {[%clk 0:04:56.7]} 3. exd5 {[%clk 0:04:56.9]} 3... c5 {[%clk 0:04:53]}
4. dxc5 {[%clk 0:04:53.8]} 4... Qa5+ {[%clk 0:04:48.6]} 5. Nc3 {[%clk
0:04:49.4]} 5... Qxc5 {[%clk 0:04:47]} 6. Nf3 {[%clk 0:04:44]} 6... Nf6 {[%clk
0:04:39.3]} 7. Be2 {[%clk 0:04:35.3]} 7... e6 {[%clk 0:04:36.5]} 8. dxe6 {[%clk
0:04:32.4]} 8... Bxe6 {[%clk 0:04:33.3]} 9. O-O {[%clk 0:04:31.5]} 9... Nc6
{[%clk 0:04:28]} 10. Be3 {[%clk 0:04:28.2]} 10... Qe7 {[%clk 0:04:15.6]} 11. Qd3
{[%clk 0:03:48.4]} 11... Rd8 {[%clk 0:04:09.9]} 12. Qb5 {[%clk 0:03:47.3]} 12...
g6 {[%clk 0:04:04.8]} 13. Rfd1 {[%clk 0:03:35.2]} 13... Rxd1+ {[%clk 0:03:42.2]}
14. Rxd1 {[%clk 0:03:32.9]} 14... Bd7 {[%clk 0:03:38.5]} 15. Qxb7 {[%clk
0:03:28.7]} 15... Nd8 {[%clk 0:03:37.5]} 16. Qxa7 {[%clk 0:03:22.7]} 16... Bg7
{[%clk 0:03:31.9]} 17. Bb5 {[%clk 0:03:12.9]} 17... O-O {[%clk 0:03:26.1]} 18.
Bxd7 {[%clk 0:03:04.8]} 18... Nxd7 {[%clk 0:03:24.5]} 19. Qxd7 {[%clk
0:03:02.9]} 19... Qxd7 {[%clk 0:03:23.2]} 20. Rxd7 {[%clk 0:03:01.1]} 20... Ne6
{[%clk 0:03:21.5]} 21. Rb7 {[%clk 0:02:46.3]} 21... g5 {[%clk 0:03:12.1]} 22. h3
{[%clk 0:02:44.5]} 22... f5 {[%clk 0:03:03.2]} 23. Bxg5 {[%clk 0:02:38.3]} 23...
Nxg5 {[%clk 0:03:00.6]} 24. Nxg5 {[%clk 0:02:37.4]} 24... Bd4 {[%clk 0:02:50.8]}
25. Ne6 {[%clk 0:02:32]} 25... Re8 {[%clk 0:02:46.1]} 26. Nxd4 {[%clk
0:02:28.8]} 26... Re1+ {[%clk 0:02:43.8]} 27. Kh2 {[%clk 0:02:27.6]} 27... f4
{[%clk 0:02:42.4]} 28. g3 {[%clk 0:02:12.3]} 28... fxg3+ {[%clk 0:02:39.5]} 29.
Kxg3 {[%clk 0:02:11.3]} 29... Rd1 {[%clk 0:02:38.4]} 30. Nde2 {[%clk 0:02:08.6]}
30... Rd2 {[%clk 0:02:37.1]} 31. a4 {[%clk 0:02:05.2]} 31... Rxc2 {[%clk
0:02:36.2]} 32. a5 {[%clk 0:02:04.2]} 32... Rd2 {[%clk 0:02:31.6]} 33. a6 {[%clk
0:02:03]} 33... Rd8 {[%clk 0:02:29.7]} 34. a7 {[%clk 0:02:01.9]} 34... h5 {[%clk
0:02:22.1]} 35. h4 {[%clk 0:01:57.4]} 35... Kf8 {[%clk 0:02:19.6]} 36. Rb8
{[%clk 0:01:56.6]} 36... Rxb8 {[%clk 0:02:18.1]} 37. axb8=Q+ {[%clk 0:01:55.2]}
37... Ke7 {[%clk 0:02:18]} 38. Kf4 {[%clk 0:01:53.9]} 38... Kf6 {[%clk
0:02:16.6]} 39. Qb6+ {[%clk 0:01:52.1]} 39... Kg7 {[%clk 0:02:14.7]} 40. Kg5
{[%clk 0:01:50.8]} 40... Kf7 {[%clk 0:02:13.3]} 41. Kf5 {[%clk 0:01:46.5]} 41...
Kg7 {[%clk 0:02:12.3]} 42. Qc7+ {[%clk 0:01:45]} 42... Kf8 {[%clk 0:02:10.1]}
43. Kf6 {[%clk 0:01:42.2]} 43... Kg8 {[%clk 0:02:09.7]} 44. Qg7# {[%clk
0:01:40.8]} 1-0

[Event "Live Chess"]
[Site "Chess.com"]
[Date "2023.05.21"]
[Round "-"]
[White "ViktorTheCoolBoy"]
[Black "manthanit"]
[Result "1-0"]
[WhiteElo "2520"]
[BlackElo "1055"]
[TimeControl "300"]
[EndTime "18:25:22 PDT"]
[Termination "ViktorTheCoolBoy won by resignation"]

1. d4 {[%clk 0:04:58.7]} 1... e6 {[%clk 0:04:59.1]} 2. Nf3 {[%clk 0:04:56.1]}
2... d5 {[%clk 0:04:58.7]} 3. c4 {[%clk 0:04:54.7]} 3... dxc4 {[%clk 0:04:57.4]}
4. e4 {[%clk 0:04:52.9]} 4... c5 {[%clk 0:04:55.7]} 5. Bxc4 {[%clk 0:04:50.8]}
5... cxd4 {[%clk 0:04:53.6]} 6. Nxd4 {[%clk 0:04:49.8]} 6... Nc6 {[%clk
0:04:49.9]} 7. Be3 {[%clk 0:04:46.7]} 7... Nxd4 {[%clk 0:04:47.8]} 8. Bxd4
{[%clk 0:04:46.6]} 8... Bb4+ {[%clk 0:04:41.7]} 9. Nc3 {[%clk 0:04:45.5]} 9...
Bxc3+ {[%clk 0:04:41]} 10. Bxc3 {[%clk 0:04:44.8]} 10... Nf6 {[%clk 0:04:40.3]}
11. Qf3 {[%clk 0:04:42.8]} 11... O-O {[%clk 0:04:36.1]} 12. O-O {[%clk
0:04:41.2]} 12... b6 {[%clk 0:04:34]} 13. e5 {[%clk 0:04:39.6]} 13... Nd7 {[%clk
0:04:16.7]} 14. Qxa8 {[%clk 0:04:37.4]} 14... Qg5 {[%clk 0:04:09.1]} 15. f4
{[%clk 0:04:34.3]} 15... Qf5 {[%clk 0:04:05.5]} 16. Qf3 {[%clk 0:04:32.3]} 16...
f6 {[%clk 0:04:03.6]} 17. Bd3 {[%clk 0:04:31.2]} 17... Nxe5 {[%clk 0:03:50.3]}
18. Bxe5 {[%clk 0:04:29]} 18... fxe5 {[%clk 0:03:28.4]} 19. Bxf5 {[%clk
0:04:26.8]} 19... Rxf5 {[%clk 0:03:28]} 20. Qc6 {[%clk 0:04:25.2]} 20... Ba6
{[%clk 0:03:21.1]} 21. Qxe6+ {[%clk 0:04:23.4]} 21... Kh8 {[%clk 0:03:17.9]} 1-0

[Event "Live Chess"]
[Site "Chess.com"]
[Date "2023.05.21"]
[Round "-"]
[White "ThatGuyNamedJeff"]
[Black "Olisingapore"]
[Result "0-1"]
[WhiteElo "1566"]
[BlackElo "1798"]
[TimeControl "300"]
[EndTime "18:25:47 PDT"]
[Termination "Olisingapore won on time"]

1. e4 {[%clk 0:04:59.4]} 1... e5 {[%clk 0:04:59.9]} 2. Nf3 {[%clk 0:04:55.8]}
2... Nc6 {[%clk 0:04:52.7]} 3. Bc4 {[%clk 0:04:53.5]} 3... Nf6 {[%clk
0:04:50.6]} 4. d3 {[%clk 0:04:50]} 4... Bc5 {[%clk 0:04:48.8]} 5. O-O {[%clk
0:04:47.1]} 5... O-O {[%clk 0:04:48.3]} 6. c3 {[%clk 0:04:42.3]} 6... a6 {[%clk
0:04:46.1]} 7. Nbd2 {[%clk 0:04:29.6]} 7... Na5 {[%clk 0:04:45.6]} 8. b4 {[%clk
0:04:07.3]} 8... Nxc4 {[%clk 0:04:41.5]} 9. bxc5 {[%clk 0:04:04.6]} 9... Nxd2
{[%clk 0:04:40.4]} 10. Bxd2 {[%clk 0:04:01.1]} 10... d5 {[%clk 0:04:36.8]} 11.
Nxe5 {[%clk 0:03:47.3]} 11... dxe4 {[%clk 0:04:34.2]} 12. dxe4 {[%clk
0:03:45.7]} 12... Nxe4 {[%clk 0:04:32.6]} 13. Nc4 {[%clk 0:03:12.4]} 13... Nxc5
{[%clk 0:04:25.8]} 14. Qh5 {[%clk 0:02:57.3]} 14... Ne4 {[%clk 0:04:18.1]} 15.
Rad1 {[%clk 0:02:52.6]} 15... Nf6 {[%clk 0:04:12.5]} 16. Qf3 {[%clk 0:02:00.9]}
16... Bg4 {[%clk 0:04:08.1]} 17. Qg3 {[%clk 0:01:33.7]} 17... Bxd1 {[%clk
0:04:05.6]} 18. Rxd1 {[%clk 0:01:28.1]} 18... Ne4 {[%clk 0:04:05]} 19. Qg4
{[%clk 0:01:04.8]} 19... Nxd2 {[%clk 0:03:59.6]} 20. Rxd2 {[%clk 0:00:58.9]}
20... Qf6 {[%clk 0:03:59.1]} 21. Rd4 {[%clk 0:00:44.2]} 21... Rfe8 {[%clk
0:03:55.2]} 22. h3 {[%clk 0:00:40.3]} 22... b5 {[%clk 0:03:45.3]} 23. Ne3 {[%clk
0:00:34.9]} 23... c5 {[%clk 0:03:33.8]} 24. Rd5 {[%clk 0:00:23.6]} 24... Qxc3
{[%clk 0:03:17.3]} 25. Nf5 {[%clk 0:00:19.4]} 25... Re1+ {[%clk 0:03:06.7]} 26.
Kh2 {[%clk 0:00:18.4]} 26... g6 {[%clk 0:03:01.9]} 27. Nh6+ {[%clk 0:00:16.9]}
27... Kg7 {[%clk 0:02:58.7]} 28. Nf5+ {[%clk 0:00:13.2]} 28... Kh8 {[%clk
0:02:54.3]} 29. Nh6 {[%clk 0:00:10.6]} 29... Rae8 {[%clk 0:02:47.5]} 30. Nxf7+
{[%clk 0:00:09.3]} 30... Kg7 {[%clk 0:02:46.4]} 31. Rd7 {[%clk 0:00:04.5]} 31...
R8e7 {[%clk 0:02:30.2]} 0-1

[Event "Live Chess"]
[Site "Chess.com"]
[Date "2023.05.21"]
[Round "-"]
[White "GMHarry-youtube"]
[Black "jimwad"]
[Result "1-0"]
[WhiteElo "2057"]
[BlackElo "1247"]
[TimeControl "300"]
[EndTime "18:25:59 PDT"]
[Termination "GMHarry-youtube won by resignation"]

1. e4 {[%clk 0:04:58]} 1... e5 {[%clk 0:04:57.9]} 2. Nf3 {[%clk 0:04:56.7]} 2...
Nc6 {[%clk 0:04:56.7]} 3. Bc4 {[%clk 0:04:55.5]} 3... Bc5 {[%clk 0:04:55.2]} 4.
c3 {[%clk 0:04:54.4]} 4... Nf6 {[%clk 0:04:53.8]} 5. O-O {[%clk 0:04:53.6]} 5...
d6 {[%clk 0:04:52.5]} 6. d4 {[%clk 0:04:52.8]} 6... exd4 {[%clk 0:04:50.3]} 7.
cxd4 {[%clk 0:04:52.7]} 7... Bb6 {[%clk 0:04:48.4]} 8. e5 {[%clk 0:04:48.2]}
8... dxe5 {[%clk 0:04:46.7]} 9. Nxe5 {[%clk 0:04:45.5]} 9... Nxe5 {[%clk
0:04:45.2]} 10. dxe5 {[%clk 0:04:45.4]} 10... Qxd1 {[%clk 0:04:43.8]} 11. Rxd1
{[%clk 0:04:45.3]} 11... Ne4 {[%clk 0:04:42.3]} 12. Be3 {[%clk 0:04:39.3]} 12...
Bxe3 {[%clk 0:04:40.2]} 13. fxe3 {[%clk 0:04:39]} 13... O-O {[%clk 0:04:39]} 14.
Nd2 {[%clk 0:04:38.1]} 14... Nxd2 {[%clk 0:04:37.5]} 15. Rxd2 {[%clk 0:04:38]}
15... Re8 {[%clk 0:04:30.8]} 16. Rad1 {[%clk 0:04:36.1]} 16... g6 {[%clk
0:04:25.2]} 17. Rd8 {[%clk 0:04:32.8]} 17... Rxd8 {[%clk 0:04:22.9]} 18. Rxd8+
{[%clk 0:04:31.2]} 18... Kg7 {[%clk 0:04:19.3]} 19. e6 {[%clk 0:04:30.5]} 19...
fxe6 {[%clk 0:04:18]} 20. Bxe6 {[%clk 0:04:29.5]} 1-0

[Event "Live Chess"]
[Site "Chess.com"]
[Date "2023.05.21"]
[Round "-"]
[White "Missedidea"]
[Black "chessfiction"]
[Result "0-1"]
[WhiteElo "1824"]
[BlackElo "2345"]
[TimeControl "300"]
[EndTime "18:26:10 PDT"]
[Termination "chessfiction won by resignation"]

1. d4 {[%clk 0:04:58.8]} 1... d5 {[%clk 0:04:58.7]} 2. c4 {[%clk 0:04:57.8]}
2... e5 {[%clk 0:04:57.5]} 3. dxe5 {[%clk 0:04:56.1]} 3... Nc6 {[%clk 0:04:56]}
4. cxd5 {[%clk 0:04:53.7]} 4... Nxe5 {[%clk 0:04:51.6]} 5. e4 {[%clk 0:04:52.4]}
5... Bc5 {[%clk 0:04:47.2]} 6. Nc3 {[%clk 0:04:40.2]} 6... Nf6 {[%clk
0:04:42.6]} 7. h3 {[%clk 0:04:33.8]} 7... O-O {[%clk 0:04:40.4]} 8. Nf3 {[%clk
0:04:31.5]} 8... Qe7 {[%clk 0:04:36.3]} 9. Bd3 {[%clk 0:04:27.4]} 9... Re8
{[%clk 0:04:33]} 10. O-O {[%clk 0:04:25]} 10... Nxd3 {[%clk 0:04:30.9]} 11. Qxd3
{[%clk 0:04:23.1]} 11... Nxe4 {[%clk 0:04:29.9]} 12. Nxe4 {[%clk 0:04:21]} 12...
Qxe4 {[%clk 0:04:29.8]} 13. Qxe4 {[%clk 0:04:18.7]} 13... Rxe4 {[%clk
0:04:29.7]} 14. Bd2 {[%clk 0:04:09.9]} 14... Bd7 {[%clk 0:04:21.2]} 15. Bc3
{[%clk 0:04:08.1]} 15... Rae8 {[%clk 0:04:19.4]} 16. Rfe1 {[%clk 0:04:04.7]}
16... Re2 {[%clk 0:04:17.7]} 17. Rxe2 {[%clk 0:04:02.4]} 17... Rxe2 {[%clk
0:04:17.6]} 18. Rf1 {[%clk 0:03:57.4]} 18... Bb5 {[%clk 0:04:15.7]} 19. Ne5
{[%clk 0:03:51.3]} 19... Rc2 {[%clk 0:04:02.9]} 20. Rd1 {[%clk 0:03:47.6]} 20...
Rxf2 {[%clk 0:03:52]} 21. Bd4 {[%clk 0:03:39.4]} 21... Rf1+ {[%clk 0:03:50.2]}
22. Rxf1 {[%clk 0:03:36.7]} 22... Bxd4+ {[%clk 0:03:49.4]} 23. Kh1 {[%clk
0:03:33.4]} 23... Bxf1 {[%clk 0:03:46.1]} 24. Nf3 {[%clk 0:03:31.4]} 24... Bf6
{[%clk 0:03:39.9]} 0-1

[Event "Live Chess"]
[Site "Chess.com"]
[Date "2023.05.21"]
[Round "-"]
[White "LodeshChess"]
[Black "garyjc"]
[Result "0-1"]
[WhiteElo "1169"]
[BlackElo "1046"]
[TimeControl "300"]
[EndTime "18:26:21 PDT"]
[Termination "garyjc won by resignation"]

1. e4 {[%clk 0:04:54.5]} 1... c5 {[%clk 0:04:57.1]} 2. Nf3 {[%clk 0:04:53.2]}
2... d6 {[%clk 0:04:53]} 3. d4 {[%clk 0:04:52.4]} 3... cxd4 {[%clk 0:04:45.8]}
4. Qxd4 {[%clk 0:04:52.1]} 4... Nc6 {[%clk 0:04:43.8]} 5. Qe3 {[%clk 0:04:50.9]}
5... g6 {[%clk 0:04:35.5]} 6. Be2 {[%clk 0:04:47]} 6... Bg7 {[%clk 0:04:32.7]}
7. O-O {[%clk 0:04:39.3]} 7... Nf6 {[%clk 0:04:28.3]} 8. h3 {[%clk 0:04:37.3]}
8... O-O {[%clk 0:04:23]} 9. Rd1 {[%clk 0:04:35.8]} 9... Nb4 {[%clk 0:04:12.1]}
10. Qf4 {[%clk 0:04:24.1]} 10... Nxc2 {[%clk 0:04:02.9]} 11. e5 {[%clk
0:04:21.3]} 11... Nxa1 {[%clk 0:03:56.3]} 12. exf6 {[%clk 0:04:20.5]} 12... Bxf6
{[%clk 0:03:50.7]} 13. Na3 {[%clk 0:04:06]} 13... Bf5 {[%clk 0:03:13.9]} 14. Nd4
{[%clk 0:03:36.9]} 14... e5 {[%clk 0:02:58.1]} 0-1

[Event "Live Chess"]
[Site "Chess.com"]
[Date "2023.05.21"]
[Round "-"]
[White "ChessClubLive"]
[Black "therealab0ne"]
[Result "1-0"]
[WhiteElo "1494"]
[BlackElo "716"]
[TimeControl "300"]
[EndTime "18:26:54 PDT"]
[Termination "ChessClubLive won by checkmate"]

1. e4 {[%clk 0:04:52.3]} 1... c5 {[%clk 0:04:58.1]} 2. d4 {[%clk 0:04:47.7]}
2... cxd4 {[%clk 0:04:56.9]} 3. c3 {[%clk 0:04:45.8]} 3... e5 {[%clk 0:04:50.5]}
4. cxd4 {[%clk 0:04:42.8]} 4... exd4 {[%clk 0:04:37.9]} 5. Nf3 {[%clk
0:04:40.7]} 5... Bb4+ {[%clk 0:04:32.1]} 6. Bd2 {[%clk 0:04:33.1]} 6... Nc6
{[%clk 0:04:24.8]} 7. Bc4 {[%clk 0:04:22.7]} 7... Nf6 {[%clk 0:03:57.9]} 8. Qe2
{[%clk 0:04:01.2]} 8... O-O {[%clk 0:03:43.9]} 9. O-O {[%clk 0:03:58]} 9... Re8
{[%clk 0:03:42.8]} 10. Bd3 {[%clk 0:03:56.4]} 10... d5 {[%clk 0:03:37.4]} 11. e5
{[%clk 0:03:54.5]} 11... Ng4 {[%clk 0:03:19.8]} 12. Bxb4 {[%clk 0:03:13.2]}
12... Nxb4 {[%clk 0:03:08.1]} 13. Bb5 {[%clk 0:02:59.6]} 13... Re6 {[%clk
0:02:52.8]} 14. a3 {[%clk 0:02:54.7]} 14... Nc6 {[%clk 0:02:34.5]} 15. Bxc6
{[%clk 0:02:52.8]} 15... bxc6 {[%clk 0:02:33.8]} 16. Nxd4 {[%clk 0:02:50.7]}
16... Rxe5 {[%clk 0:02:28.8]} 17. Qf3 {[%clk 0:02:33.1]} 17... Ba6 {[%clk
0:02:22.6]} 18. Qxg4 {[%clk 0:02:16]} 18... Bxf1 {[%clk 0:02:13.4]} 19. Kxf1
{[%clk 0:02:12.7]} 19... Qg5 {[%clk 0:02:00.9]} 20. Qxg5 {[%clk 0:02:09.1]}
20... Rxg5 {[%clk 0:02:00]} 21. Nxc6 {[%clk 0:01:59]} 21... Rc8 {[%clk
0:01:50.7]} 22. Nd4 {[%clk 0:01:51.3]} 22... Rc4 {[%clk 0:01:38.2]} 23. Nf3
{[%clk 0:01:46.1]} 23... Rg6 {[%clk 0:01:34.1]} 24. Nc3 {[%clk 0:01:42.2]} 24...
f6 {[%clk 0:01:29.7]} 25. Nxd5 {[%clk 0:01:27.6]} 25... Rcg4 {[%clk 0:01:21.3]}
26. Ne7+ {[%clk 0:01:24.1]} 26... Kf7 {[%clk 0:01:16]} 27. Nxg6 {[%clk
0:01:23.1]} 27... Kxg6 {[%clk 0:01:15.4]} 28. Rc1 {[%clk 0:01:14.6]} 28... a5
{[%clk 0:01:14.2]} 29. Rc5 {[%clk 0:01:09.3]} 29... Ra4 {[%clk 0:01:10.2]} 30.
Nh4+ {[%clk 0:00:51.6]} 30... Kf7 {[%clk 0:01:09.2]} 31. Rc7+ {[%clk 0:00:46.4]}
31... Ke6 {[%clk 0:01:08]} 32. Nf3 {[%clk 0:00:43.2]} 32... Kd6 {[%clk
0:01:06.2]} 33. Rxg7 {[%clk 0:00:39.8]} 33... Kc5 {[%clk 0:00:54.6]} 34. Rxh7
{[%clk 0:00:36.3]} 34... Kc4 {[%clk 0:00:53.7]} 35. Rh4+ {[%clk 0:00:35.1]}
35... Kb3 {[%clk 0:00:50.6]} 36. Rxa4 {[%clk 0:00:33]} 36... Kxa4 {[%clk
0:00:50]} 37. Nd2 {[%clk 0:00:28.7]} 37... Kb5 {[%clk 0:00:39.9]} 38. Ke2 {[%clk
0:00:27.9]} 38... Kc5 {[%clk 0:00:38.9]} 39. Ke3 {[%clk 0:00:27.3]} 39... Kd5
{[%clk 0:00:37.6]} 40. Kf4 {[%clk 0:00:25.9]} 40... Kd4 {[%clk 0:00:35]} 41.
Nb3+ {[%clk 0:00:21.7]} 41... Kc4 {[%clk 0:00:33.5]} 42. Nxa5+ {[%clk
0:00:20.7]} 42... Kb5 {[%clk 0:00:31.4]} 43. b4 {[%clk 0:00:19.7]} 43... Ka4
{[%clk 0:00:30.1]} 44. Kf5 {[%clk 0:00:17.9]} 44... Kxa3 {[%clk 0:00:29.6]} 45.
Kxf6 {[%clk 0:00:17.8]} 45... Kxb4 {[%clk 0:00:29]} 46. h4 {[%clk 0:00:17.6]}
46... Kxa5 {[%clk 0:00:28.4]} 47. h5 {[%clk 0:00:17]} 47... Kb6 {[%clk
0:00:27.8]} 48. h6 {[%clk 0:00:16.4]} 48... Kc5 {[%clk 0:00:26.7]} 49. h7 {[%clk
0:00:16.3]} 49... Kd4 {[%clk 0:00:26.4]} 50. h8=Q {[%clk 0:00:15.5]} 50... Ke4
{[%clk 0:00:25.4]} 51. Qh5 {[%clk 0:00:13.2]} 51... Kd4 {[%clk 0:00:24.3]} 52.
Qe5+ {[%clk 0:00:11.7]} 52... Kd3 {[%clk 0:00:23.3]} 53. g4 {[%clk 0:00:10.8]}
53... Kd2 {[%clk 0:00:21.9]} 54. g5 {[%clk 0:00:10.7]} 54... Kd3 {[%clk
0:00:20.5]} 55. g6 {[%clk 0:00:10.4]} 55... Kc2 {[%clk 0:00:20.2]} 56. g7 {[%clk
0:00:10.2]} 56... Kb3 {[%clk 0:00:19.7]} 57. g8=Q+ {[%clk 0:00:09.5]} 57... Kb4
{[%clk 0:00:18.8]} 58. Qd8 {[%clk 0:00:08.7]} 58... Kc4 {[%clk 0:00:18.1]} 59.
Qec7+ {[%clk 0:00:07.5]} 59... Kb3 {[%clk 0:00:17.1]} 60. Qdb8+ {[%clk
0:00:07.1]} 60... Ka4 {[%clk 0:00:16.4]} 61. Qca7# {[%clk 0:00:06.7]} 1-0

[Event "Live Chess"]
[Site "Chess.com"]
[Date "2023.05.21"]
[Round "-"]
[White "WelshTiger"]
[Black "Cimon"]
[Result "1-0"]
[WhiteElo "2363"]
[BlackElo "1852"]
[TimeControl "300"]
[EndTime "18:27:03 PDT"]
[Termination "WelshTiger won on time"]

1. e4 {[%clk 0:04:58.8]} 1... c5 {[%clk 0:04:57.7]} 2. Nf3 {[%clk 0:04:57.4]}
2... Nc6 {[%clk 0:04:56]} 3. Bb5 {[%clk 0:04:53.9]} 3... g6 {[%clk 0:04:54.4]}
4. O-O {[%clk 0:04:50.5]} 4... Bg7 {[%clk 0:04:52.4]} 5. c3 {[%clk 0:04:49.9]}
5... Nf6 {[%clk 0:04:49.2]} 6. Qa4 {[%clk 0:04:48.8]} 6... O-O {[%clk
0:04:45.1]} 7. d4 {[%clk 0:04:47]} 7... cxd4 {[%clk 0:04:43.1]} 8. cxd4 {[%clk
0:04:46.9]} 8... a6 {[%clk 0:04:26.1]} 9. Nc3 {[%clk 0:04:41.4]} 9... Qb6 {[%clk
0:04:02.1]} 10. Be3 {[%clk 0:04:36]} 10... Qc7 {[%clk 0:03:57.5]} 11. d5 {[%clk
0:04:32.1]} 11... Ne5 {[%clk 0:03:47.6]} 12. Be2 {[%clk 0:04:30.5]} 12... d6
{[%clk 0:03:38.1]} 13. Rac1 {[%clk 0:04:28.3]} 13... Qd8 {[%clk 0:03:26.3]} 14.
Nxe5 {[%clk 0:04:26.3]} 14... dxe5 {[%clk 0:03:25]} 15. Qb3 {[%clk 0:04:08.4]}
15... b5 {[%clk 0:03:16.6]} 16. f3 {[%clk 0:04:06.9]} 16... Bd7 {[%clk
0:03:06.6]} 17. Rfd1 {[%clk 0:04:01.9]} 17... Nh5 {[%clk 0:03:02.9]} 18. g3
{[%clk 0:03:31.4]} 18... Rc8 {[%clk 0:02:57.1]} 19. a4 {[%clk 0:03:17.2]} 19...
bxa4 {[%clk 0:02:37]} 20. Nxa4 {[%clk 0:03:15.9]} 20... Rxc1 {[%clk 0:02:32.7]}
21. Rxc1 {[%clk 0:03:14.3]} 21... Qe8 {[%clk 0:01:30.8]} 22. Nc5 {[%clk
0:03:07.6]} 22... Bb5 {[%clk 0:01:27.1]} 23. Bxb5 {[%clk 0:03:05.3]} 23... axb5
{[%clk 0:01:25.8]} 24. Nd3 {[%clk 0:02:51.6]} 24... Kh8 {[%clk 0:01:08.5]} 25.
Rc5 {[%clk 0:02:46]} 25... f5 {[%clk 0:01:06.5]} 26. Rxb5 {[%clk 0:02:44.8]}
26... fxe4 {[%clk 0:01:03.5]} 27. fxe4 {[%clk 0:02:44.7]} 27... Qf7 {[%clk
0:00:57]} 28. Qd1 {[%clk 0:02:37.4]} 28... Nf6 {[%clk 0:00:55.2]} 29. Nxe5
{[%clk 0:02:33.7]} 29... Qe8 {[%clk 0:00:51.3]} 30. Rb4 {[%clk 0:02:31]} 30...
Nh5 {[%clk 0:00:37.7]} 31. Nf3 {[%clk 0:02:23.1]} 31... h6 {[%clk 0:00:29.9]}
32. Bd4 {[%clk 0:02:20.2]} 32... Qf7 {[%clk 0:00:26.3]} 33. Bxg7+ {[%clk
0:02:16.6]} 33... Nxg7 {[%clk 0:00:24.9]} 34. Kg2 {[%clk 0:02:14.5]} 34... g5
{[%clk 0:00:18.9]} 35. Qe2 {[%clk 0:02:13.3]} 35... g4 {[%clk 0:00:17.8]} 36.
Ne5 {[%clk 0:02:12.4]} 36... Qf6 {[%clk 0:00:13.2]} 37. Nxg4 {[%clk 0:02:10.3]}
37... Qd6 {[%clk 0:00:11.4]} 38. Rc4 {[%clk 0:02:02.4]} 38... h5 {[%clk
0:00:09.1]} 39. Rc6 {[%clk 0:02:01.3]} 39... Qb4 {[%clk 0:00:06.3]} 40. Ne5
{[%clk 0:01:55.9]} 1-0